Workbook

Sheet 5月育雏舍
A1: 2025年5月份 弥勒育种场（育雏舍） 月报表
A2: 鸡舍 | B2: 品种 | C2: 5月末 日龄 | D2: 上月存栏 | F2: 本月进苗 | H2: 本月死亡 | J2: 本月淘汰 | L2: 本月转出 | N2: 本月存栏 | P2: 成活率 % | Q2: 备注
D3: ♂ | E3: ♀ | F3: ♂ | G3: ♀ | H3: ♂ | I3: ♀ | J3: ♂ | K3: ♀ | L3: ♂ | M3: ♀ | N3: ♂ | O3: ♀
A4: 育雏5/6舍 | B4: M系第1批 | C4: 17 | D4: 0 | E4: 0 | F4: 0 | G4: 6379 | H4: 0 | I4: 73 | J4: 0 | K4: 901 | L4: 0 | M4: 0 | N4: =D4+F4-H4-J4-#REF!-L4 ->  | O4: =E4+G4-I4-K4-#REF!-M4 ->  | P4: =1-(H4+I4+J4+K4)/(D4+E4+F4+G4) -> 0.8473114908
A5: 育雏3/4舍 | B5: M系第2批 | C5: 4 | D5: 0 | E5: 0 | F5: 0 | G5: 6355 | H5: 0 | I5: 2 | J5: 0 | K5: 207 | L5: 0 | M5: 0 | N5: =D5+F5-H5-J5-#REF!-L5 ->  | O5: =E5+G5-I5-K5-#REF!-M5 ->  | P5: =1-(H5+I5+J5+K5)/(D5+E5+F5+G5) -> 0.9671125098
A7: 育成舍合计 | D7: =SUM(D4:D5) -> 0 | E7: =SUM(E4:E5) -> 0 | F7: 0 | G7: 12734 | H7: 0 | I7: 75 | J7: 0 | K7: 1108 | L7: =SUM(L4:L5) -> 0 | M7: =SUM(M4:M5) -> 0 | N7: =SUM(N4:N5) ->  | O7: =SUM(O4:O5) ->  | P7: =1-(H7+I7)/(D7+E7+F7+G7) -> 0.994110256
A9: 转出到育成舍0只混合苗。

Sheet 5月份育成
A1: 2025年5月份 弥勒育种场（育成舍） 月报表
A2: 鸡舍 | B2: 品种 | C2: 5月末 日龄 | D2: 上月存栏 | F2: 本月转入 | H2: 本月死亡 | J2: 本月淘汰 | L2: 本月转出 | N2: 本月存栏 | P2: 成活率 % | Q2: 备注
D3: ♂ | E3: ♀ | F3: ♂ | G3: ♀ | H3: ♂ | I3: ♀ | J3: ♂ | K3: ♀ | L3: ♂ | M3: ♀ | N3: ♂ | O3: ♀
A4: 育成10舍 | B4: N系第1批 | C4: 69 | D4: 1905 | E4: 2142 | F4: 0 | G4: 0 | H4: 20 | I4: 0 | J4: 16 | K4: 18 | L4: 0 | M4: 0 | N4: =D4+F4-H4-J4-#REF!-L4 ->  | O4: =E4+G4-I4-K4-#REF!-M4 ->  | P4: =1-(H4+I4+J4+K4)/(D4+E4+F4+G4) -> 0.9866567828
A5: 育成9舍 | B5: N系第2批 | C5: 59 | D5: 1920 | E5: 2522 | F5: 0 | G5: 0 | H5: 9 | I5: 3 | J5: 34 | K5: 27 | L5: 0 | M5: 0 | N5: =D5+F5-H5-J5-#REF!-L5 ->  | O5: =E5+G5-I5-K5-#REF!-M5 ->  | P5: =1-(H5+I5+J5+K5)/(D5+E5+F5+G5) -> 0.9835659613
A6: 育成6舍 | B6: C系第2批 | C6: 116 | D6: 244 | E6: 2040 | F6: 0 | G6: 0 | H6: 2 | I6: 21 | J6: 5 | K6: 21 | L6: 237 | M6: 1992 | N6: =D6+F6-H6-J6-#REF!-L6 ->  | O6: =E6+G6-I6-K6-#REF!-M6 ->  | P6: =1-(H6+I6+J6+K6)/(D6+E6+F6+G6) -> 0.9785464098 | Q6: 转群至产蛋8舍
A7: 育成7舍 | B7: D系第4批 | C7: 109 | D7: 229 | E7: 1871 | F7: 0 | G7: 0 | H7: 1 | I7: 8 | J7: 20 | K7: 5 | L7: 0 | M7: 0 | N7: =D7+F7-H7-J7-#REF!-L7 ->  | O7: =E7+G7-I7-K7-#REF!-M7 ->  | P7: =1-(H7+I7+J7+K7)/(D7+E7+F7+G7) -> 0.9838095238
A8: 育成12舍 | B8: C系第3批 | C8: 99 | D8: 253 | E8: 1611 | F8: 0 | G8: 0 | H8: 5 | I8: 19 | J8: 26 | K8: 27 | L8: 0 | M8: 0 | N8: =D8+F8-H8-J8-#REF!-L8 ->  | O8: =E8+G8-I8-K8-#REF!-M8 ->  | P8: =1-(H8+I8+J8+K8)/(D8+E8+F8+G8) -> 0.9586909871
A10: 育成舍合计 | D10: =SUM(D4:D8) -> 4551 | E10: =SUM(E4:E8) -> 10186 | F10: =SUM(F4:F8) -> 0 | G10: =SUM(G4:G8) -> 0 | H10: =SUM(H4:H8) -> 37 | I10: =SUM(I4:I8) -> 51 | J10: =SUM(J4:J8) -> 101 | K10: =SUM(K4:K8) -> 98 | L10: =SUM(L4:L8) -> 237 | M10: 1992 | P10: =1-(H10+I10+J10+K10)/(D10+E10+F10+G10) -> 0.9805252087
A12: 育种场育雏舍转入：0只混合苗。
A13: 转到产蛋舍：237只公鸡，1992只母鸡。
A14: 转入祖代肉鸡舍：0只公鸡，0只母鸡。销售：1676只公鸡，954只母鸡。
A15: 转入祖代产蛋二区：0只公鸡，0只母鸡。
